[Event "Early-Titled-Tuesday-Blitz-August-29-2023"]
[Site "Chess.com"]
[Date "2023.08.29"]
[Round "4"]
[White "MarcoRiehle"]
[Black "Zhigalko_Sergei"]
[Result "1-0"]
[WhiteElo "2831"]
[BlackElo "2930"]
[TimeControl "180+1"]
[EndTime "8:39:48 PDT"]
[Termination "MarcoRiehle won by checkmate"]

1. e4 {[%clk 0:03:00.9]} 1... c5 {[%clk 0:02:59.7]} 2. a3 {[%clk 0:02:58.4]}
2... e6 {[%clk 0:02:48.8]} 3. b4 {[%clk 0:02:56.6]} 3... cxb4 {[%clk 0:02:46]}
4. axb4 {[%clk 0:02:57.5]} 4... Bxb4 {[%clk 0:02:46.2]} 5. Bb2 {[%clk
0:02:57.5]} 5... Nf6 {[%clk 0:02:36.2]} 6. e5 {[%clk 0:02:57.5]} 6... Nd5 {[%clk
0:02:36.1]} 7. c4 {[%clk 0:02:55.6]} 7... Ne7 {[%clk 0:02:34.1]} 8. Qg4 {[%clk
0:02:54.9]} 8... Nf5 {[%clk 0:01:55]} 9. Bd3 {[%clk 0:02:53.1]} 9... O-O {[%clk
0:01:54.6]} 10. Nf3 {[%clk 0:02:50]} 10... Nc6 {[%clk 0:01:53.8]} 11. h4 {[%clk
0:02:49.1]} 11... Qb6 {[%clk 0:01:36.6]} 12. Nc3 {[%clk 0:02:14]} 12... Bc5
{[%clk 0:01:26.3]} 13. Na4 {[%clk 0:02:14.2]} 13... Qa5 {[%clk 0:00:46]} 14. O-O
{[%clk 0:01:49.3]} 14... Be7 {[%clk 0:00:39.7]} 15. Bxf5 {[%clk 0:01:40.9]}
15... exf5 {[%clk 0:00:39.9]} 16. Qg3 {[%clk 0:01:41.6]} 16... Qd8 {[%clk
0:00:18.5]} 17. d4 {[%clk 0:01:37.9]} 17... f4 {[%clk 0:00:19.1]} 18. Qxf4
{[%clk 0:01:37.2]} 18... d5 {[%clk 0:00:18.9]} 19. cxd5 {[%clk 0:01:25.9]} 19...
Qxd5 {[%clk 0:00:18.6]} 20. Nc3 {[%clk 0:01:26.5]} 20... Qb3 {[%clk 0:00:13.8]}
21. Rab1 {[%clk 0:01:25.5]} 21... Nb4 {[%clk 0:00:13.8]} 22. Ba1 {[%clk
0:01:21.8]} 22... Qc2 {[%clk 0:00:11.4]} 23. d5 {[%clk 0:01:04.6]} 23... a5
{[%clk 0:00:11.3]} 24. d6 {[%clk 0:01:03.7]} 24... Bd8 {[%clk 0:00:11.7]} 25.
Nd4 {[%clk 0:00:48.6]} 25... Qg6 {[%clk 0:00:10.5]} 26. Rfd1 {[%clk 0:00:36.3]}
26... Bg4 {[%clk 0:00:07.7]} 27. f3 {[%clk 0:00:25.9]} 27... Bd7 {[%clk
0:00:06.2]} 28. Ne4 {[%clk 0:00:23.2]} 28... Bb6 {[%clk 0:00:06]} 29. Kh2 {[%clk
0:00:22.2]} 29... Nd5 {[%clk 0:00:06.3]} 30. Qg5 {[%clk 0:00:20.5]} 30... Ra7
{[%clk 0:00:01.5]} 31. Qxg6 {[%clk 0:00:19.8]} 31... hxg6 {[%clk 0:00:02.4]} 32.
Nb5 {[%clk 0:00:17.4]} 32... Ne3 {[%clk 0:00:02.3]} 33. Rd3 {[%clk 0:00:13.5]}
33... Bxb5 {[%clk 0:00:02.1]} 34. Rxb5 {[%clk 0:00:13.1]} 34... Nc4 {[%clk
0:00:01.9]} 35. Bd4 {[%clk 0:00:12.9]} 35... Bxd4 {[%clk 0:00:02]} 36. Rxd4
{[%clk 0:00:13.8]} 36... Ne3 {[%clk 0:00:01.7]} 37. Nc5 {[%clk 0:00:11.3]} 37...
Nf5 {[%clk 0:00:01.7]} 38. Ra4 {[%clk 0:00:08.4]} 38... b6 {[%clk 0:00:01.9]}
39. Rxb6 {[%clk 0:00:08]} 39... Rd8 {[%clk 0:00:02.1]} 40. Rb5 {[%clk
0:00:07.2]} 40... f6 {[%clk 0:00:02.7]} 41. f4 {[%clk 0:00:07.1]} 41... Nxh4
{[%clk 0:00:02.6]} 42. Rbxa5 {[%clk 0:00:06.7]} 42... Rxa5 {[%clk 0:00:03.5]}
43. Rxa5 {[%clk 0:00:07.6]} 43... g5 {[%clk 0:00:04.3]} 44. Nb7 {[%clk
0:00:07.5]} 44... Rd7 {[%clk 0:00:04.1]} 45. e6 {[%clk 0:00:08.1]} 45... Rxb7
{[%clk 0:00:04.3]} 46. d7 {[%clk 0:00:08.6]} 46... Rb8 {[%clk 0:00:04.2]} 47. e7
{[%clk 0:00:09.1]} 47... Rb2 {[%clk 0:00:04.2]} 48. e8=Q+ {[%clk 0:00:08.7]}
48... Kh7 {[%clk 0:00:05.1]} 49. Qh5+ {[%clk 0:00:08.9]} 49... Kg8 {[%clk
0:00:05.7]} 50. d8=Q# {[%clk 0:00:09.8]} 1-0

[Event "Early-Titled-Tuesday-Blitz-August-29-2023"]
[Site "Chess.com"]
[Date "2023.08.29"]
[Round "4"]
[White "Onthequiet"]
[Black "SpongeBob_03"]
[Result "1-0"]
[WhiteElo "2374"]
[BlackElo "2164"]
[TimeControl "180+1"]
[EndTime "8:39:48 PDT"]
[Termination "Onthequiet won by resignation"]

1. d4 {[%clk 0:03:00.9]} 1... Nf6 {[%clk 0:02:54.5]} 2. Nf3 {[%clk 0:03:00.3]}
2... e6 {[%clk 0:02:53.1]} 3. a3 {[%clk 0:02:59.2]} 3... b6 {[%clk 0:02:51.6]}
4. g3 {[%clk 0:02:57.7]} 4... Bb7 {[%clk 0:02:43.9]} 5. Bg2 {[%clk 0:02:58.2]}
5... d6 {[%clk 0:02:44.2]} 6. O-O {[%clk 0:02:57.6]} 6... Nbd7 {[%clk
0:02:44.7]} 7. c4 {[%clk 0:02:52.1]} 7... Be7 {[%clk 0:02:45.1]} 8. Qc2 {[%clk
0:02:50.7]} 8... e5 {[%clk 0:02:45.1]} 9. Nc3 {[%clk 0:02:49]} 9... O-O {[%clk
0:02:44.4]} 10. Rd1 {[%clk 0:02:46.7]} 10... exd4 {[%clk 0:02:37.5]} 11. Nxd4
{[%clk 0:02:45.7]} 11... Bxg2 {[%clk 0:02:37]} 12. Kxg2 {[%clk 0:02:46.3]} 12...
c5 {[%clk 0:02:35.4]} 13. Nf5 {[%clk 0:02:45.3]} 13... Ne5 {[%clk 0:02:33.3]}
14. Nb5 {[%clk 0:02:39.2]} 14... Qd7 {[%clk 0:02:14.7]} 15. Nbxd6 {[%clk
0:02:30.2]} 15... Bxd6 {[%clk 0:02:10.6]} 16. Rxd6 {[%clk 0:02:28.3]} 16... Qb7+
{[%clk 0:02:10.5]} 17. f3 {[%clk 0:02:27.3]} 17... Rfd8 {[%clk 0:02:09.7]} 18.
Bg5 {[%clk 0:01:40.9]} 18... Rxd6 {[%clk 0:01:59.2]} 19. Nxd6 {[%clk 0:01:39.6]}
19... Qc6 {[%clk 0:01:59.4]} 20. Rd1 {[%clk 0:01:33.6]} 20... Nfg4 {[%clk
0:01:23.3]} 21. Nf5 {[%clk 0:01:26.3]} 21... Re8 {[%clk 0:01:15.2]} 22. h3
{[%clk 0:01:15.1]} 22... f6 {[%clk 0:01:04.7]} 23. Bf4 {[%clk 0:01:11.8]} 23...
g5 {[%clk 0:00:28.8]} 24. Bc1 {[%clk 0:01:00]} 24... Nxf3 {[%clk 0:00:16.9]} 25.
exf3 {[%clk 0:00:58.5]} 25... Ne5 {[%clk 0:00:17.8]} 26. Qc3 {[%clk 0:00:26.3]}
26... h5 {[%clk 0:00:17]} 27. Rd5 {[%clk 0:00:23.4]} 27... Qe6 {[%clk 0:00:16]}
28. g4 {[%clk 0:00:21]} 28... hxg4 {[%clk 0:00:15.8]} 29. hxg4 {[%clk
0:00:21.9]} 29... Ng6 {[%clk 0:00:14.6]} 30. Be3 {[%clk 0:00:19.1]} 30... Kh7
{[%clk 0:00:06.9]} 31. Qd2 {[%clk 0:00:16.7]} 31... Ne7 {[%clk 0:00:03.3]} 32.
Rd7 {[%clk 0:00:15.1]} 32... Kg8 {[%clk 0:00:01.4]} 33. Nxe7+ {[%clk 0:00:13.3]}
33... Rxe7 {[%clk 0:00:02.3]} 34. Rxe7 {[%clk 0:00:12.9]} 34... Qxe7 {[%clk
0:00:03.2]} 35. Qd5+ {[%clk 0:00:12.4]} 35... Kg7 {[%clk 0:00:04.1]} 36. Kf2
{[%clk 0:00:12.5]} 36... Qe5 {[%clk 0:00:04.2]} 37. Qxe5 {[%clk 0:00:12.4]}
37... fxe5 {[%clk 0:00:04.6]} 38. Ke2 {[%clk 0:00:12.9]} 38... Kg6 {[%clk
0:00:05.5]} 39. Kd3 {[%clk 0:00:13.4]} 39... Kf6 {[%clk 0:00:06.3]} 40. Ke4
{[%clk 0:00:13.8]} 40... a6 {[%clk 0:00:06.8]} 41. b4 {[%clk 0:00:12.5]} 41...
cxb4 {[%clk 0:00:06.9]} 42. axb4 {[%clk 0:00:12]} 42... b5 {[%clk 0:00:07.8]}
43. c5 {[%clk 0:00:11.9]} 43... a5 {[%clk 0:00:07.9]} 44. bxa5 {[%clk
0:00:10.6]} 44... b4 {[%clk 0:00:08.2]} 45. a6 {[%clk 0:00:11.2]} 45... b3
{[%clk 0:00:09.1]} 46. Bc1 {[%clk 0:00:11.4]} 46... b2 {[%clk 0:00:10]} 47. Bxb2
{[%clk 0:00:12.1]} 1-0

[Event "Early-Titled-Tuesday-Blitz-August-29-2023"]
[Site "Chess.com"]
[Date "2023.08.29"]
[Round "4"]
[White "wonderfultime"]
[Black "Fighterman91"]
[Result "1-0"]
[WhiteElo "2967"]
[BlackElo "2736"]
[TimeControl "180+1"]
[EndTime "8:39:50 PDT"]
[Termination "wonderfultime won on time"]

1. d4 {[%clk 0:02:46.3]} 1... Nf6 {[%clk 0:02:59.3]} 2. Nf3 {[%clk 0:02:46]}
2... g6 {[%clk 0:02:56.4]} 3. Bg5 {[%clk 0:02:46.4]} 3... Bg7 {[%clk 0:02:56.8]}
4. Nbd2 {[%clk 0:02:47.1]} 4... O-O {[%clk 0:02:57.3]} 5. c3 {[%clk 0:02:47.5]}
5... h6 {[%clk 0:02:55.5]} 6. Bh4 {[%clk 0:02:47.6]} 6... d6 {[%clk 0:02:55.8]}
7. e4 {[%clk 0:02:47.8]} 7... c5 {[%clk 0:02:56.5]} 8. dxc5 {[%clk 0:02:48.7]}
8... dxc5 {[%clk 0:02:57]} 9. Bc4 {[%clk 0:02:49.4]} 9... Nc6 {[%clk 0:02:56.9]}
10. Qe2 {[%clk 0:02:49.9]} 10... Nh5 {[%clk 0:02:55.6]} 11. O-O {[%clk 0:02:47]}
11... Qc7 {[%clk 0:02:51.8]} 12. Qe3 {[%clk 0:02:33]} 12... b6 {[%clk
0:02:50.8]} 13. Rfe1 {[%clk 0:02:26.6]} 13... e5 {[%clk 0:02:39.4]} 14. Rad1
{[%clk 0:02:17.7]} 14... Nf4 {[%clk 0:02:26.1]} 15. h3 {[%clk 0:02:12.6]} 15...
g5 {[%clk 0:02:21.6]} 16. Bg3 {[%clk 0:02:11.3]} 16... Ne7 {[%clk 0:02:15.6]}
17. Nf1 {[%clk 0:01:58.8]} 17... Neg6 {[%clk 0:02:15.2]} 18. Qd2 {[%clk
0:01:49.6]} 18... Bb7 {[%clk 0:01:22.9]} 19. Qc2 {[%clk 0:01:39.1]} 19... Rad8
{[%clk 0:01:12.8]} 20. Ne3 {[%clk 0:01:39.1]} 20... Ne7 {[%clk 0:01:12.3]} 21.
h4 {[%clk 0:01:29.5]} 21... Bf6 {[%clk 0:01:08]} 22. Ng4 {[%clk 0:01:28.5]}
22... Kg7 {[%clk 0:00:37.5]} 23. a4 {[%clk 0:01:15.6]} 23... Neg6 {[%clk
0:00:33.8]} 24. hxg5 {[%clk 0:00:47]} 24... hxg5 {[%clk 0:00:34.7]} 25. Bd5
{[%clk 0:00:44.4]} 25... Bc8 {[%clk 0:00:32.8]} 26. Ne3 {[%clk 0:00:41.4]} 26...
Rh8 {[%clk 0:00:30.9]} 27. c4 {[%clk 0:00:39.6]} 27... Rh5 {[%clk 0:00:27.2]}
28. Bxf4 {[%clk 0:00:37]} 28... Nxf4 {[%clk 0:00:24.1]} 29. g3 {[%clk
0:00:35.2]} 29... Nh3+ {[%clk 0:00:09]} 30. Kf1 {[%clk 0:00:26.1]} 30... g4
{[%clk 0:00:08.2]} 31. Nh2 {[%clk 0:00:19.5]} 31... Nf4 {[%clk 0:00:04.9]} 32.
gxf4 {[%clk 0:00:17.4]} 32... Rxh2 {[%clk 0:00:05]} 33. f5 {[%clk 0:00:17.5]}
33... g3 {[%clk 0:00:04.8]} 34. Ng4 {[%clk 0:00:18]} 34... Rh1+ {[%clk 0:00:03]}
35. Kg2 {[%clk 0:00:16.5]} 35... Rxe1 {[%clk 0:00:03.6]} 36. Rxe1 {[%clk
0:00:17.4]} 36... Rh8 {[%clk 0:00:03.5]} 37. fxg3 {[%clk 0:00:17.4]} 37... Bg5
{[%clk 0:00:04.1]} 38. Qc3 {[%clk 0:00:17.6]} 38... f6 {[%clk 0:00:04]} 39. Nf2
{[%clk 0:00:16.7]} 39... Qd8 {[%clk 0:00:03.3]} 40. b4 {[%clk 0:00:14.2]} 40...
cxb4 {[%clk 0:00:02.6]} 41. Qxb4 {[%clk 0:00:15.1]} 41... Bd7 {[%clk 0:00:02.9]}
42. Ra1 {[%clk 0:00:13.2]} 42... Qc7 {[%clk 0:00:02.3]} 43. a5 {[%clk
0:00:13.4]} 1-0

[Event "Early-Titled-Tuesday-Blitz-August-29-2023"]
[Site "Chess.com"]
[Date "2023.08.29"]
[Round "4"]
[White "FREDERICKtheMATE"]
[Black "MaevskiyNikolay"]
[Result "1-0"]
[WhiteElo "2470"]
[BlackElo "2668"]
[TimeControl "180+1"]
[EndTime "8:39:51 PDT"]
[Termination "FREDERICKtheMATE won by resignation"]

1. Nf3 {[%clk 0:03:00.9]} 1... Nf6 {[%clk 0:02:57.7]} 2. g3 {[%clk 0:03:01.8]}
2... b5 {[%clk 0:02:57.6]} 3. b3 {[%clk 0:03:01.8]} 3... Bb7 {[%clk 0:02:57.9]}
4. Bg2 {[%clk 0:03:02.3]} 4... e6 {[%clk 0:02:58.5]} 5. Bb2 {[%clk 0:03:02.2]}
5... c5 {[%clk 0:02:59.1]} 6. O-O {[%clk 0:03:01.9]} 6... Be7 {[%clk 0:02:59.5]}
7. c4 {[%clk 0:03:02.3]} 7... a6 {[%clk 0:02:59.2]} 8. d3 {[%clk 0:03:01.5]}
8... O-O {[%clk 0:02:58.8]} 9. Nbd2 {[%clk 0:03:02.1]} 9... d6 {[%clk
0:02:58.1]} 10. e4 {[%clk 0:03:01.7]} 10... Nbd7 {[%clk 0:02:55.7]} 11. Re1
{[%clk 0:03:01.7]} 11... Qc7 {[%clk 0:02:55.2]} 12. Qc2 {[%clk 0:03:01.8]} 12...
Rfe8 {[%clk 0:02:54.7]} 13. Rac1 {[%clk 0:03:01.3]} 13... h6 {[%clk 0:02:53.4]}
14. h3 {[%clk 0:03:00.9]} 14... Rac8 {[%clk 0:02:45.8]} 15. Qb1 {[%clk 0:03:01]}
15... Qb8 {[%clk 0:02:45.8]} 16. Qa1 {[%clk 0:03:01.3]} 16... Bf8 {[%clk
0:02:45.9]} 17. Nh2 {[%clk 0:03:00.6]} 17... Qa8 {[%clk 0:02:45.8]} 18. f4
{[%clk 0:02:59.8]} 18... e5 {[%clk 0:02:33.6]} 19. f5 {[%clk 0:02:58.5]} 19...
Be7 {[%clk 0:02:31.4]} 20. g4 {[%clk 0:02:57.9]} 20... Nh7 {[%clk 0:02:31.4]}
21. Ndf3 {[%clk 0:02:57.7]} 21... Ng5 {[%clk 0:02:27.4]} 22. h4 {[%clk 0:02:54]}
22... Nxf3+ {[%clk 0:02:27.2]} 23. Nxf3 {[%clk 0:02:54.5]} 23... Nf6 {[%clk
0:02:12.7]} 24. Bh3 {[%clk 0:02:51.7]} 24... Nh7 {[%clk 0:02:12.6]} 25. Rc2
{[%clk 0:02:42.6]} 25... Rc7 {[%clk 0:02:12.8]} 26. Rf2 {[%clk 0:02:39.5]} 26...
Qd8 {[%clk 0:02:12.9]} 27. h5 {[%clk 0:02:30.8]} 27... Ng5 {[%clk 0:02:12.2]}
28. Nxg5 {[%clk 0:02:27.1]} 28... Bxg5 {[%clk 0:02:11.7]} 29. Rf3 {[%clk
0:02:24.1]} 29... Bc6 {[%clk 0:02:10.1]} 30. Bc3 {[%clk 0:02:19.6]} 30... Rb7
{[%clk 0:02:09.8]} 31. Qd1 {[%clk 0:02:11.8]} 31... Qc7 {[%clk 0:02:06.2]} 32.
Bd2 {[%clk 0:02:09]} 32... Bxd2 {[%clk 0:01:55.9]} 33. Qxd2 {[%clk 0:02:09.9]}
33... f6 {[%clk 0:01:56.5]} 34. Kf2 {[%clk 0:01:52.6]} 34... Reb8 {[%clk
0:01:55.9]} 35. Rb1 {[%clk 0:01:42.3]} 35... bxc4 {[%clk 0:01:52.3]} 36. dxc4
{[%clk 0:01:37.4]} 36... Bxe4 {[%clk 0:01:52.4]} 37. Rd1 {[%clk 0:01:37.4]}
37... Bxf3 {[%clk 0:01:50.6]} 38. Kxf3 {[%clk 0:01:38.3]} 38... Rb6 {[%clk
0:01:43.9]} 39. Qd5+ {[%clk 0:01:37.5]} 39... Kh8 {[%clk 0:01:44.3]} 40. Bg2
{[%clk 0:01:37.7]} 40... a5 {[%clk 0:01:43.7]} 41. Ke2 {[%clk 0:01:28]} 41... a4
{[%clk 0:01:43.4]} 42. Rd3 {[%clk 0:01:28.5]} 42... axb3 {[%clk 0:01:43]} 43.
axb3 {[%clk 0:01:28.3]} 43... Rxb3 {[%clk 0:01:30.1]} 44. Rxb3 {[%clk
0:01:27.6]} 44... Rxb3 {[%clk 0:01:30.2]} 45. Qe6 {[%clk 0:01:27.7]} 45... Rb2+
{[%clk 0:01:25.6]} 46. Kf1 {[%clk 0:01:26]} 46... Rb8 {[%clk 0:01:23]} 47. Bd5
{[%clk 0:01:21.5]} 47... Rd8 {[%clk 0:01:21.8]} 48. Kg2 {[%clk 0:01:20.3]} 48...
Qd7 {[%clk 0:01:21.6]} 49. Kf3 {[%clk 0:01:14.8]} 49... Qxe6 {[%clk 0:01:21.5]}
50. fxe6 {[%clk 0:01:14.4]} 50... Re8 {[%clk 0:01:21.8]} 51. Ke4 {[%clk
0:01:14.2]} 51... f5+ {[%clk 0:00:51.8]} 52. Kxf5 {[%clk 0:01:06.9]} 52... Rf8+
{[%clk 0:00:51.8]} 53. Ke4 {[%clk 0:01:06.6]} 53... g6 {[%clk 0:00:34.2]} 54.
Bc6 {[%clk 0:01:00.6]} 54... gxh5 {[%clk 0:00:27.7]} 55. e7 {[%clk 0:00:57]}
55... Rc8 {[%clk 0:00:21.2]} 56. gxh5 {[%clk 0:00:57]} 56... Kg7 {[%clk
0:00:18.5]} 57. e8=Q {[%clk 0:00:56.7]} 57... Rxe8 {[%clk 0:00:18.6]} 58. Bxe8
{[%clk 0:00:57.6]} 58... Kf6 {[%clk 0:00:18.2]} 59. Kd5 {[%clk 0:00:55.4]} 59...
Kf5 {[%clk 0:00:13.4]} 60. Bg6+ {[%clk 0:00:55.1]} 60... Kf4 {[%clk 0:00:13.4]}
61. Kxd6 {[%clk 0:00:55.2]} 61... e4 {[%clk 0:00:13.6]} 62. Kxc5 {[%clk
0:00:54.2]} 62... e3 {[%clk 0:00:13.6]} 63. Bd3 {[%clk 0:00:54.5]} 63... Kf3
{[%clk 0:00:13.9]} 64. Kd6 {[%clk 0:00:54.9]} 64... e2 {[%clk 0:00:12.7]} 65.
Bxe2+ {[%clk 0:00:55]} 65... Kxe2 {[%clk 0:00:13.6]} 66. c5 {[%clk 0:00:55.4]}
66... Kf3 {[%clk 0:00:14.5]} 67. c6 {[%clk 0:00:56]} 67... Kg4 {[%clk
0:00:15.4]} 68. c7 {[%clk 0:00:56.7]} 68... Kxh5 {[%clk 0:00:16.3]} 69. c8=Q
{[%clk 0:00:56.9]} 69... Kh4 {[%clk 0:00:17.2]} 70. Qf5 {[%clk 0:00:56]} 70...
h5 {[%clk 0:00:17.5]} 71. Ke5 {[%clk 0:00:55.6]} 1-0

[Event "Early-Titled-Tuesday-Blitz-August-29-2023"]
[Site "Chess.com"]
[Date "2023.08.29"]
[Round "4"]
[White "koncheto"]
[Black "Kopytkin"]
[Result "1-0"]
[WhiteElo "2523"]
[BlackElo "2364"]
[TimeControl "180+1"]
[EndTime "8:39:51 PDT"]
[Termination "koncheto won by checkmate"]

1. e4 {[%clk 0:03:00.9]} 1... Nf6 {[%clk 0:02:54.4]} 2. e5 {[%clk 0:03:01.1]}
2... Nd5 {[%clk 0:02:54.3]} 3. c4 {[%clk 0:03:01.5]} 3... Nb6 {[%clk 0:02:54.2]}
4. a4 {[%clk 0:03:02]} 4... a5 {[%clk 0:02:43.1]} 5. Ra3 {[%clk 0:03:01.4]} 5...
d6 {[%clk 0:02:37.7]} 6. exd6 {[%clk 0:02:44.3]} 6... cxd6 {[%clk 0:02:38.2]} 7.
Rg3 {[%clk 0:02:39]} 7... g6 {[%clk 0:02:38.1]} 8. h4 {[%clk 0:02:38.3]} 8... h5
{[%clk 0:02:37.4]} 9. d4 {[%clk 0:02:37.1]} 9... Bg7 {[%clk 0:02:37]} 10. Bd3
{[%clk 0:02:34.1]} 10... Nc6 {[%clk 0:02:31.4]} 11. Be3 {[%clk 0:02:23.5]} 11...
Bg4 {[%clk 0:02:24.3]} 12. Rxg4 {[%clk 0:02:17.1]} 12... hxg4 {[%clk 0:02:23.7]}
13. Qxg4 {[%clk 0:02:18]} 13... Qd7 {[%clk 0:02:22.1]} 14. Qg3 {[%clk
0:02:11.1]} 14... Bxd4 {[%clk 0:02:10.2]} 15. Ne2 {[%clk 0:02:10.3]} 15... Be5
{[%clk 0:01:59.9]} 16. f4 {[%clk 0:02:09.6]} 16... Nb4 {[%clk 0:01:41.9]} 17.
Bxb6 {[%clk 0:01:58.1]} 17... Nxd3+ {[%clk 0:01:31.2]} 18. Qxd3 {[%clk 0:01:59]}
18... Bf6 {[%clk 0:01:31.8]} 19. O-O {[%clk 0:01:41.6]} 19... Rxh4 {[%clk
0:01:29.1]} 20. Nbc3 {[%clk 0:01:40.2]} 20... Kf8 {[%clk 0:01:05.5]} 21. Ne4
{[%clk 0:01:02.7]} 21... Kg7 {[%clk 0:01:04.8]} 22. Nxf6 {[%clk 0:01:01.7]}
22... exf6 {[%clk 0:01:04.9]} 23. Nc3 {[%clk 0:00:53.1]} 23... Rah8 {[%clk
0:01:03.5]} 24. Bd4 {[%clk 0:00:49.5]} 24... Qg4 {[%clk 0:00:24.2]} 25. Nd5
{[%clk 0:00:46.4]} 25... Rh2 {[%clk 0:00:15]} 26. Bxf6+ {[%clk 0:00:40.3]} 26...
Kf8 {[%clk 0:00:14.7]} 27. Qe4 {[%clk 0:00:34.4]} 27... Rh1+ {[%clk 0:00:14]}
28. Kf2 {[%clk 0:00:34.7]} 28... Rxf1+ {[%clk 0:00:11.4]} 29. Kxf1 {[%clk
0:00:35.6]} 29... Rh1+ {[%clk 0:00:11.5]} 30. Kf2 {[%clk 0:00:36.1]} 30... Qe6
{[%clk 0:00:11.9]} 31. Be7+ {[%clk 0:00:22.5]} 31... Kg8 {[%clk 0:00:05.5]} 32.
Nf6+ {[%clk 0:00:17.4]} 32... Kh8 {[%clk 0:00:05.8]} 33. Qxe6 {[%clk 0:00:13.4]}
33... fxe6 {[%clk 0:00:06.7]} 34. Bxd6 {[%clk 0:00:14.3]} 34... Rb1 {[%clk
0:00:05.9]} 35. Be5 {[%clk 0:00:13.8]} 35... Kg7 {[%clk 0:00:04.8]} 36. Ne8+
{[%clk 0:00:09.7]} 36... Kf8 {[%clk 0:00:04]} 37. Nd6 {[%clk 0:00:10.6]} 37...
Ke7 {[%clk 0:00:04.2]} 38. Nxb7 {[%clk 0:00:10.8]} 38... Rc1 {[%clk 0:00:04.6]}
39. Nxa5 {[%clk 0:00:10.8]} 39... Rc2+ {[%clk 0:00:04.1]} 40. Kg3 {[%clk
0:00:11.1]} 40... Kd7 {[%clk 0:00:04.7]} 41. b4 {[%clk 0:00:09.9]} 41... Ra2
{[%clk 0:00:04.4]} 42. c5 {[%clk 0:00:08.8]} 42... Rxa4 {[%clk 0:00:04.7]} 43.
c6+ {[%clk 0:00:09.7]} 43... Kc8 {[%clk 0:00:05]} 44. Bd6 {[%clk 0:00:08.6]}
44... Ra1 {[%clk 0:00:01.6]} 45. Nc4 {[%clk 0:00:08.8]} 45... Rc1 {[%clk
0:00:01.8]} 46. Nb6+ {[%clk 0:00:08.5]} 46... Kd8 {[%clk 0:00:01.1]} 47. c7+
{[%clk 0:00:09.4]} 47... Ke8 {[%clk 0:00:01.1]} 48. c8=Q+ {[%clk 0:00:09.5]}
48... Kf7 {[%clk 0:00:02]} 49. Qf8# {[%clk 0:00:08]} 1-0

[Event "Early-Titled-Tuesday-Blitz-August-29-2023"]
[Site "Chess.com"]
[Date "2023.08.29"]
[Round "4"]
[White "gueraumasague"]
[Black "NovikovaGalina"]
[Result "1-0"]
[WhiteElo "2548"]
[BlackElo "2392"]
[TimeControl "180+1"]
[EndTime "8:39:53 PDT"]
[Termination "gueraumasague won on time"]

1. e4 {[%clk 0:03:00.9]} 1... e6 {[%clk 0:02:59.6]} 2. Qe2 {[%clk 0:02:59.1]}
2... d5 {[%clk 0:03:00.5]} 3. exd5 {[%clk 0:02:59.3]} 3... Qxd5 {[%clk
0:02:59.6]} 4. Nc3 {[%clk 0:02:59.9]} 4... Qd8 {[%clk 0:03:00.2]} 5. Nf3 {[%clk
0:02:58.5]} 5... Nf6 {[%clk 0:03:01.1]} 6. d4 {[%clk 0:02:58.1]} 6... Be7 {[%clk
0:03:00]} 7. g3 {[%clk 0:02:56.2]} 7... O-O {[%clk 0:02:56.9]} 8. Bg2 {[%clk
0:02:56.3]} 8... c5 {[%clk 0:02:56.8]} 9. dxc5 {[%clk 0:02:54.8]} 9... Bxc5
{[%clk 0:02:52.4]} 10. O-O {[%clk 0:02:53.2]} 10... Nc6 {[%clk 0:02:51.5]} 11.
Rd1 {[%clk 0:02:52.7]} 11... Qe7 {[%clk 0:02:52]} 12. Bg5 {[%clk 0:02:46.5]}
12... h6 {[%clk 0:02:50.6]} 13. Bxf6 {[%clk 0:02:45.8]} 13... Qxf6 {[%clk
0:02:51.5]} 14. Ne4 {[%clk 0:02:46.2]} 14... Qe7 {[%clk 0:02:52.2]} 15. a4
{[%clk 0:02:36.7]} 15... a6 {[%clk 0:02:45.6]} 16. c3 {[%clk 0:02:33.7]} 16...
Ba7 {[%clk 0:02:34.3]} 17. Nd6 {[%clk 0:02:13.1]} 17... e5 {[%clk 0:02:28.5]}
18. Nh4 {[%clk 0:02:05.2]} 18... Be6 {[%clk 0:02:14.5]} 19. Nhf5 {[%clk
0:01:47.5]} 19... Qf6 {[%clk 0:02:03.4]} 20. Ne3 {[%clk 0:01:42.6]} 20... Qe7
{[%clk 0:01:23.1]} 21. Nd5 {[%clk 0:01:29.8]} 21... Bxd5 {[%clk 0:01:17.4]} 22.
Rxd5 {[%clk 0:01:30.7]} 22... f5 {[%clk 0:01:12.5]} 23. Rad1 {[%clk 0:01:20]}
23... e4 {[%clk 0:01:11.8]} 24. Nxf5 {[%clk 0:01:19.2]} 24... Qf6 {[%clk
0:01:04.1]} 25. Ne3 {[%clk 0:01:08.9]} 25... Rae8 {[%clk 0:01:01.6]} 26. Rd7
{[%clk 0:01:07.4]} 26... Re7 {[%clk 0:00:52.4]} 27. h4 {[%clk 0:01:03.1]} 27...
Kh8 {[%clk 0:00:36]} 28. Rxe7 {[%clk 0:01:01.1]} 28... Qxe7 {[%clk 0:00:34.6]}
29. Rd2 {[%clk 0:00:58.2]} 29... Qc5 {[%clk 0:00:22.4]} 30. Bxe4 {[%clk
0:00:55.5]} 30... Qa5 {[%clk 0:00:17.7]} 31. Qg4 {[%clk 0:00:48.6]} 31... Bxe3
{[%clk 0:00:12.7]} 32. fxe3 {[%clk 0:00:47.2]} 32... Ne5 {[%clk 0:00:09.7]} 33.
Qd1 {[%clk 0:00:43.1]} 33... Qb6 {[%clk 0:00:08.9]} 34. Qe2 {[%clk 0:00:37.9]}
34... Qf6 {[%clk 0:00:04.9]} 35. Kg2 {[%clk 0:00:35.6]} 35... Qe7 {[%clk
0:00:05.2]} 36. Rd4 {[%clk 0:00:34.7]} 36... b5 {[%clk 0:00:04.8]} 37. axb5
{[%clk 0:00:34.5]} 37... axb5 {[%clk 0:00:05.7]} 38. Qxb5 {[%clk 0:00:34.1]}
38... Qf6 {[%clk 0:00:04.8]} 39. Qe2 {[%clk 0:00:33.9]} 39... Ng4 {[%clk
0:00:03.8]} 40. Bf3 {[%clk 0:00:29.8]} 40... Ne5 {[%clk 0:00:03.6]} 41. Rf4
{[%clk 0:00:29.7]} 41... Qe7 {[%clk 0:00:03.5]} 42. Rxf8+ {[%clk 0:00:30.5]}
42... Qxf8 {[%clk 0:00:04.4]} 43. b4 {[%clk 0:00:29.4]} 43... Qc8 {[%clk
0:00:03.5]} 44. Qc2 {[%clk 0:00:17.5]} 44... Qc4 {[%clk 0:00:02.1]} 45. Qe4
{[%clk 0:00:07.9]} 45... Qc7 {[%clk 0:00:02.5]} 46. Qa8+ {[%clk 0:00:07.8]}
46... Kh7 {[%clk 0:00:02.1]} 47. Be4+ {[%clk 0:00:07.3]} 47... g6 {[%clk
0:00:02.6]} 48. Qd5 {[%clk 0:00:02.6]} 1-0